Cogmind - Beta 11.1 *** ADVENTURER MODE // 2022.10.12 @ 10:31:52 Player: Birbsy Result: Destroyed by 8R-AWN with 8R-AWN's Boregun Performance ------------- Evolutions (0) 0 Regions Visited (3) 600 Robots Destroyed (10) 50 Value Destroyed (221) 221 Prototype IDs (4) 80 Alien Tech Used (0) 0 Bonus (0) 0 TOTAL SCORE: 951 Bonus ------- None Cogmind --------- Core Integrity 0/250 Matter 250/300 Energy 125/125 System Corruption 1% Temperature Cool (0) Movement Walking (260) Ox2 Location -10/Exiles Parts ------- > --- POWER (1) -------- Light Ion Engine > --- PROPULSION (2) --- Aluminum Leg Aluminum Leg > --- UTILITY (2) ------ High-capacity Storage Unit > --- WEAPON (2) ------- Light Cannon Light Cannon > --- INVENTORY (20) --- Light Ion Engine Nuclear Core Reinforced Deuterium Engine Light Fission Core Heat Sink Heat Sink Small Storage Unit High-capacity Matter Pod (5) Visual Processing Unit Targeting Computer Weapon Shielding Small Laser Light Assault Rifle Light Assault Rifle Light Assault Rifle Grenade Launcher Peak State ------------ > --- POWER ------------ Light Ion Engine > --- PROPULSION ------- Aluminum Leg Aluminum Leg > --- UTILITY ---------- High-capacity Storage Unit Sensor Array > --- WEAPON ----------- Light Cannon Light Cannon > --- INVENTORY -------- Light Ion Engine Nuclear Core Light Fission Core Aluminum Leg Heat Sink Heat Sink Small Storage Unit High-capacity Matter Pod Visual Processing Unit Targeting Computer Weapon Shielding Small Laser Light Assault Rifle Light Assault Rifle Light Assault Rifle Grenade Launcher [Rating: 9] Favorites ----------- Power Light Ion Engine Engine Light Ion Engine Propulsion Aluminum Leg Leg Aluminum Leg Utility High-capacity Storage Unit Device Heat Sink Storage High-capacity Storage Unit Weapon Assault Rifle Energy Gun Small Laser Ballistic Gun Assault Rifle Ballistic Cannon Light Cannon Build | -11 -10 -10 -10 ------- Run | Scr Mat Min Exi Slots Evolved . | . . . . Power . | . . . . Propulsion . | . . . . Utility . | . . . . Weapon . | . . . . Parts Attached 20 | 6 8 5 1 Power 3 | 1 1 1 . Engine 3 | 1 1 1 . Core . | . . . . Reactor . | . . . . Propulsion 5 | 2 2 . 1 Treads . | . . . . Leg 5 | 2 2 . 1 Wheel . | . . . . Hover . | . . . . Flight . | . . . . Utility 5 | 1 3 1 . Device 3 | . 2 1 . Storage 2 | 1 1 . . Processor . | . . . . Hackware . | . . . . Protection . | . . . . Artifact . | . . . . Weapon 7 | 2 2 3 . Energy Gun 1 | . 1 . . Energy Cannon . | . . . . Ballistic Gun 4 | 2 1 1 . Ballistic Cannon 2 | . . 2 . Launcher . | . . . . Special Weapon . | . . . . Impact Weapon . | . . . . Slashing Weapon . | . . . . Piercing Weapon . | . . . . Special Melee Weapon . | . . . . Unidentified Prototypes . | . . . . Parts Lost 10 | . 5 3 2 Power 2 | . 1 1 . Propulsion 3 | . 2 . 1 Utility 1 | . . . 1 Weapon 4 | . 2 2 . Highest Loss Streak 3 | . 3 3 2 To Critical Strikes 1 | . . . 1 Average Slot Usage (%) 97 | . 96 99 100 Engine 13 | . 13 13 14 Leg 27 | . 27 28 28 Device 12 | . 12 14 14 Storage 14 | . 14 14 14 Energy Gun 11 | . 12 11 . Ballistic Gun 13 | . 14 12 . Ballistic Cannon 2 | . . 4 28 Naked Turns . | . . . . Heaviest Build 50 | 14 47 50 50 Greatest Support 20 | 20 20 20 20 Greatest Overweight (x) 3 | 3 2 2 2 Average Overweight (x) 1 | . 1 2 2 Largest Inventory Capacity 20 | 8 20 20 20 Average Capacity 18 | 7 18 20 20 Most Carried 17 | 4 17 17 17 Average Carried 11 | 2 10 16 15 Final Capacity 20 | 8 20 20 20 Final Carried 17 | 2 17 14 16 Class Distribution -------------------- 91% | Mutant 8% | Scavenger-Mutant Dominant Class ---------------- Mutant | -10/Materials Mutant | -10/Mines Scavenger-Mutant | -10/Exiles Resources | -11 -10 -10 -10 ----------- Run | Scr Mat Min Exi Matter Collected 525 | 215 247 63 . Remotely . | . . . . Salvage Created 299 | . 247 52 . Parts 19 | . 19 . . Haulers Intercepted . | . . . . Recyclers Shooed . | . . . . Parts Field Recycled . | . . . . Retrieved Matter . | . . . . Parts Self-Destructed . | . . . . Prevented . | . . . . Kills | -11 -10 -10 -10 ------- Run | Scr Mat Min Exi Combat Hostiles Destroyed 13 | . 8 5 . Guns 11 | . 8 3 . Cannons 2 | . . 2 . Classes Destroyed 4 | . 3 1 . Watcher 2 | . 2 . . Swarmer 4 | . 4 . . Grunt 4 | . 4 . . Assembled 5 | . . 5 . Best Kill Streak 4 | . 2 4 . Combat Bots Only 4 | . 2 4 . Max Kills in Single Turn 1 | . 1 1 . Gunslinging . | . . . . Exploded . | . . . . Melee . | . . . . Uniques/NPCs Destroyed . | . . . . Combat | -11 -10 -10 -10 -------- Run | Scr Mat Min Exi Damage Taken 1319 | . 742 424 153 Core 253 | . 135 68 50 Absorbed by Shields . | . . . . Core Remaining (%) 100 | 100 . . . Volleys Fired 57 | . 46 11 . Largest 2 | . 2 2 . Hottest 70 | . 60 70 . Shots Fired 87 | . 65 21 1 Gun 76 | . 65 11 . Cannon 11 | . . 10 1 Launcher . | . . . . Special . | . . . . Kinetic 74 | . 55 18 1 Thermal 13 | . 10 3 . Explosive . | . . . . Electromagnetic . | . . . . Robot Hit Streak 19 | . 10 18 19 Robot Miss Streak 3 | . 3 . . Penetration Max . | . . . . Secondary Targets 1 | . 1 . . Max Gunslinging Chain 1 | . 1 . . Shots Hit Robots 62 | . 44 17 1 Core Hits 26 | . 19 7 . Critical Kills 1 | . 1 . . Critical Parts Destroyed 1 | . 1 . . Critical Strikes 2 | . 2 . . Destroy 2 | . 2 . . Melee Attacks . | . . . . Impact . | . . . . Slashing . | . . . . Piercing . | . . . . Sneak Attacks . | . . . . Combat Hostiles . | . . . . Follow-up Attacks . | . . . . Damage Inflicted 757 | . 523 214 20 Guns 628 | . 519 109 . Cannons 125 | . . 105 20 Explosions . | . . . . Melee . | . . . . Ramming 4 | . 4 . . Kinetic 657 | . 457 180 20 Thermal 96 | . 62 34 . Explosive . | . . . . Electromagnetic . | . . . . Impact . | . . . . Slashing . | . . . . Piercing . | . . . . Highest Corruption 1 | . . 1 1 Average Corruption 1 | . . 1 1 Corruption Purged . | . . . . Corruption Blocked . | . . . . Effects 3 | . . 2 1 Matter Fused 1 | . . 1 . Misfires 1 | . . . 1 Weapon Failures 1 | . . 1 . Overload Shots . | . . . . Overflow Damage 3 | . . 3 . Projectiles 3 | . . 3 . Explosions . | . . . . Melee . | . . . . Knockbacks 3 | . . 3 . Impact . | . . . . Kinetic 3 | . . 3 . Secondary . | . . . . Self-Inflicted Damage . | . . . . Shots . | . . . . Rammed . | . . . . Targets Rammed 3 | . 3 . . Kicked 3 | . 3 . . Crushed . | . . . . Highest Temperature 47 | . 14 47 . Average Temperature 19 | . 6 20 . Received Heat Transfer 581 | . 321 260 . Siege Activations . | . . . . Robots Corrupted . | . . . . Combat Hostiles . | . . . . Parts Fried . | . . . . Impact Corruptions . | . . . . Robots Melted . | . . . . Combat Hostiles . | . . . . Parts Melted . | . . . . Heat Transferred 225 | . 150 75 . Parts Sabotaged . | . . . . Parts Stolen . | . . . . Parts Stripped . | . . . . Power Chain Reactions . | . . . . Missiles Intercepted . | . . . . Alert | -11 -10 -10 -10 ------- Run | Scr Mat Min Exi Peak Influence 167 | . 167 . . Initial . | . . . . Average 33 | . 45 . . Maximum Alert Level . | . . . . Low Security (%) 100 | 100 100 100 . Level 1 . | . . . . Level 2 . | . . . . Level 3 . | . . . . Level 4 . | . . . . Level 5 . | . . . . High Security . | . . . . Max Security . | . . . . Squads Dispatched . | . . . . Investigation . | . . . . Extermination . | . . . . Reinforcement . | . . . . Assault . | . . . . Garrison . | . . . . Intercept . | . . . . Searches Triggered . | . . . . Construction Impeded . | . . . . Haulers Reinforced . | . . . . Active Scanning Responses . | . . . . Cargo Convoy Interrupts . | . . . . Stealth | -11 -10 -10 -10 --------- Run | Scr Mat Min Exi Distress Signals . | . . . . Communications Jammed . | . . . . Distress Signals . | . . . . Times Spotted 39 | . 23 9 7 Peak Tracking Total 9 | . 5 6 9 Tactical Retreats 8 | . 4 4 . Traps | -11 -10 -10 -10 ------- Run | Scr Mat Min Exi Traps Triggered . | . . . . Indirectly . | . . . . Trap Hack Attempts . | . . . . Triggered . | . . . . Disarmed . | . . . . Reprogrammed . | . . . . Reused . | . . . . Traps Extracted . | . . . . Installed . | . . . . Triggered . | . . . . Machines | -11 -10 -10 -10 ---------- Run | Scr Mat Min Exi Machines Disabled . | . . . . Max in Single Turn . | . . . . Machines Sabotaged . | . . . . Garrisons Compromised . | . . . . Overloaded Fab Kills . | . . . . Hacking | -11 -10 -10 -10 --------- Run | Scr Mat Min Exi Machines Accessed 10 | . 10 . . Terminals 7 | . 7 . . Fabricators . | . . . . Repair Stations 1 | . 1 . . Recycling Units 2 | . 2 . . Scanalyzers . | . . . . Garrison Access . | . . . . Total Hacks 23 | . 23 . . Successful 16 | . 16 . . Failed 7 | . 7 . . Catastrophic . | . . . . Database Lockouts . | . . . . Manual 16 | . 16 . . Terminals 18 | . 18 . . Fabricators . | . . . . Repair Stations 1 | . 1 . . Recycling Units 4 | . 4 . . Scanalyzers . | . . . . Garrison Access . | . . . . Terminal Hacks 9 | . 9 . . Record 2 | . 2 . . Part Schematic 1 | . 1 . . Robot Analysis 1 | . 1 . . Prototype ID Bank 2 | . 2 . . Branch Access Points 1 | . 1 . . Alert Level 2 | . 2 . . Fabricator Hacks . | . . . . Repair Station Hacks . | . . . . Recycling Unit Hacks . | . . . . Scanalyzer . | . . . . Garrison Access Hacks . | . . . . Unauthorized Hacks 7 | . 7 . . Terminals 2 | . 2 . . Track 1 | . 1 . . Botnet 1 | . 1 . . Fabricators . | . . . . Repair Stations 1 | . 1 . . Mechanics 1 | . 1 . . Recycling Units 4 | . 4 . . Reject 2 | . 2 . . Mask 2 | . 2 . . Scanalyzers . | . . . . Garrison Access . | . . . . Data Cores Recovered . | . . . . Used . | . . . . Hacking Detections 8 | . 8 . . Full Trace Events 1 | . 1 . . Feedback Events . | . . . . Feedback Blocked . | . . . . Robot Schematics Acquired . | . . . . Robots Built . | . . . . Authchips . | . . . . Time . | . . . . Total Robot Build Rating . | . . . . Part Schematics Acquired 1 | . 1 . . Parts Built . | . . . . Authchips . | . . . . Time . | . . . . Total Part Build Rating . | . . . . Parts Repaired . | . . . . Time . | . . . . Parts Recycled . | . . . . Recycled Matter . | . . . . Retrieved Matter . | . . . . Retrieved Components . | . . . . Parts Scanalyzed . | . . . . Part Schematics Acquired . | . . . . Parts Damaged . | . . . . Bothacking | -11 -10 -10 -10 ------------ Run | Scr Mat Min Exi Used RIF Installer . | . . . . Robots Hacked . | . . . . Non-combat . | . . . . Combat . | . . . . Robot Hacks Applied . | . . . . Relay Couplers Released . | . . . . Fabnet Peak Effective % . | . . . . Robots Rewired . | . . . . Allies Hacked . | . . . . Hacks Repelled . | . . . . Allies | -11 -10 -10 -10 -------- Run | Scr Mat Min Exi Total Allies . | . . . . Largest Group . | . . . . Highest-Rated Group . | . . . . Highest-Rated Ally . | . . . . Total Orders . | . . . . Ally Attacks . | . . . . Total Damage . | . . . . Kills . | . . . . Allies Corrupted . | . . . . Allies Melted . | . . . . Intel | -11 -10 -10 -10 ------- Run | Scr Mat Min Exi Robot Analysis Total 1 | . 1 . . Derelict Logs Recovered 1 | . . 1 . Drone Launches . | . . . . Drone Recoveries . | . . . . Exploration | -11 -10 -10 -10 ------------- Run | Scr Mat Min Exi Turns Passed 2975 | 78 2071 662 164 Spaces Moved 1191 | 58 830 241 62 Core 16 | 16 . . . Treads . | . . . . Legs 1175 | 42 830 241 62 Wheels . | . . . . Hover . | . . . . Flight . | . . . . Fastest Speed 50 | 50 120 260 260 Average Speed 233 | 114 232 260 260 Slowest Speed 260 | 200 260 260 260 Overloaded Moves . | . . . . Propulsion Burnouts . | . . . . Robots Hopped . | . . . . Cave-ins Triggered . | . . . . Exploration Rate (%) 29 | 4 74 28 12 Regions Visited 3 Branch Regions 2 Pre-discovered Areas . | . . . . Known Exits Taken 1 | . 1 . . Unknown Exits Taken 2 | 1 . 1 . Scrap Searched . | . . . . Spaces Dug . | . . . . Terrain Destroyed . | . . . . Melee . | . . . . Projectile . | . . . . AOE . | . . . . Terrain Rammed . | . . . . Walls Destroyed . | . . . . Machines Disabled . | . . . . Actions | -11 -10 -10 -10 --------- Run | Scr Mat Min Exi Total 1293 | 67 904 256 66 Wait . | . . . . Move 1188 | 57 829 240 62 Hop . | . . . . Pick Up 25 | 4 18 . 3 Fast Attach 7 | 4 3 . . Attach 9 | 2 3 3 1 Detach . | . . . . Swap 4 | . 2 2 . Drop . | . . . . Fire 57 | . 46 11 . Melee . | . . . . Ram . | . . . . Kick 3 | . 3 . . Crush . | . . . . Escape Stasis . | . . . . Rewire . | . . . . Trap . | . . . . Miscellaneous . | . . . . Route ------- -11/Scrapyard -10/Materials (discovered 3 exits: [*Mat x2] / *Min) -10/Mines -10/Exiles (discovered 1 exit: [*Min]) History --------- Turn | Location | Event 26 | -11/Scrapyard | Discovered new exit (range 13) 79 | -11/Scrapyard | Entered Materials 264 | -10/Materials | Discovered new exit (range 10) 311 | -10/Materials | Build established: Mutant 335 | -10/Materials | Lost 3 parts (1p1n1w) 612 | -10/Materials | Discovered new exit (range 9) 665 | -10/Materials | Identified exit to Mines 727 | -10/Materials | Discovered new exit (range 14) 920 | -10/Materials | Core integrity fell below 50% 2150 | -10/Materials | Entered Mines 2234 | -10/Mines | Learned 2 Materials zone layouts 2274 | -10/Mines | Assembled infested the area 2580 | -10/Mines | Discovered new exit (range 5) 2707 | -10/Mines | Core integrity fell below 20% 2737 | -10/Mines | Lost 3 parts (1p2w) 2812 | -10/Mines | Entered Exiles 2896 | -10/Exiles | Discovered new exit (range 14) 2945 | -10/Exiles | Met 8R-AWN 2963 | -10/Exiles | Attacked by the Exiles 2976 | -10/Exiles | Destroyed by 8R-AWN with 8R-AWN's Boregun Last Messages --------------- 02963_ Penetrated by HV Slug. 02963_ HV Slug penetrates Machine. 02963_ Machine disabled. 02963_ HV Slug penetrates Machine. 02963_ HV Slug penetrates Wall. 02967_ Penetrated by HV Slug. 02967_ Critical hit (Destroy). 02967_ Aluminum Leg destroyed. 02967_ HV Slug penetrates Wall. 02969_ Penetrated by HV Slug. 02969_ HV Slug penetrates Wall. 02971_ Penetrated by HV Slug. 02971_ HV Slug penetrates Machine. 02971_ Penetrated by HV Slug. 02971_ HV Slug penetrates Wall. 02972_ Sensor Array destroyed. 02973_ Penetrated by HV Slug. 02973_ HV Slug penetrates Machine. 02973_ HV Slug penetrates Wall. 02976_ Penetrated by HV Slug. Map ----- +----------------------------------------------------+ | ?????????????????????????????????????????????????? | | ?????????????????????????????????????????????????? | | ?????????????????????????????????????????????????? | | ?????????????????????????????????????????????????? | | ?????????????????????????????????????????????????? | | ?????????????????????????????????????????????????? | | ?????????????????????????????????????????????????? | | ?????????????????????????????????????????????????? | | ?????????????????????????????????????????????????? | | ????????????????????????????????????????????###??? | | ???????????????????????????????????????????# #??? | | ?????????????????????????????????????????## #??? | | ?????????????????????????????????????????# < #??? | | ?????????????????????????????????????????# #??? | | ?????????????????????????????????????????# ???? | | ????????????????????????????????????????## #???? | | ???????????????????????????????????????## ##??? | | ???????????????????????????????????????# #??? | | ???????????????????#####???????????????# #??? | | ??????????????????##" %#??????????????## #??? | | ??????????????????#" #?????????????## # #??? | | ?????????????????##" g ##????????????# #?#??? | | ???????????????### ###????????### ##????? | | ???????????????# ########## #?????? | | ??????????????## a #""""## ##?????? | | ??????????????# aa a @ ##?????? | | ??????? ## #?????? | | ?????? ??## ##????? | | ??????? "???#" ;### ###??? | | ??????? #"?????##;#####?#### ###? | | ???????? ??#???????###????????##### ## | | ???????? ???????????????????????????### # | | ???????????????????????????????????????### # | | ?????????????????????????????????????????### # | | ??????????????????????????????????????????#" # | | ??????????????????????????????????????????#### | | ?????????????????????????????????????????????# | | ?????????????????????????????????????????????## | | ??????????????????????????????????????????????### | | ????????????????????????????????????????????????# | | ????????????????????????????????????????????????## | | ?????????????????????????????????????????????????# | | ?????????????????????????????????????????????????? | | ?????????????????????????????????????????????????? | | ?????????????????????????????????????????????????? | | ?????????????????????????????????????????????????? | | ?????????????????????????????????????????????????? | | ?????????????????????????????????????????????????? | | ?????????????????????????????????????????????????? | | ?????????????????????????????????????????????????? | +----------------------------------------------------+ Best States ------------- Heat Dissipation 35 Energy Generation 10 Energy Capacity 250 Matter Stores 300 Matter Capacity 300 Sight Range 16 Robot Scan Range 14 Terrain Scan Density 10 Resistance: KI 20 Resistance: TH 20 Resistance: EX 20 Resistance: EM 20 Resistance: I 20 Resistance: S 20 Resistance: P 20 Evasion (%) 55 Offensive Hacking 10 Item Schematics ----------------- Hcp. Storage Unit | -10/Materials | Hacked Robot Schematics ------------------ None Fabricated ------------ Nothing Alien Tech Used ----------------- None Achievements -------------- True Hacker Challenges ------------ None Game ------ Seed DecoyNovaAmplifier Manual? 0 Play Time 00:24:01 Cumulative 20.4 hours Start 2022.10.12 @ 06:59:20 End 2022.10.12 @ 10:31:52 Sessions 1 Manual Loads 0 Difficulty Adventurer Special Mode None Game No. 9 Rogue 0 Adventurer 9 Explorer 0 Win Type - Total 0 Types 0/0/0/0/0/0/0/0/0 Lore% 15 Gallery% 20 Achievement% 17 Wizard Run 0 Options --------- ASCII 0 Keyboard 1 Movement Arrows Keybinds 0 Fullscreen 2 Font 24/Smallcaps Map View 113x50 Tactical HUD 1 Map Filters NONE Filters NONE Steam 0 RUN: e2e57177-340d-403d-8373-5e76d8128c22